[Event "3rd Sharjah Challengers 2023"]
[Site "Sharjah"]
[Date "2023.05.18"]
[Round "2.3"]
[White "Nigmatov, Ortik"]
[Black "Mkrtchyan, Mariam"]
[Result "1-0"]
[ECO "C50"]
[WhiteElo "2438"]
[BlackElo "2360"]
[Annotator "TA"]
[PlyCount "79"]
[EventDate "2023.05.16"]
[EventType "swiss"]
[EventCountry "UAE"]
[SourceTitle "playchess.com"]
[Source "ChessBase"]
[SourceQuality "1"]
[TimeControl "5400+30"]

{[%evp 10,79,12,12,19,7,14,6,26,25,26,25,25,15,40,34,39,29,43,34,38,25,22,25,67,66,64,65,67,67,77,81,85,50,93,87,89,79,80,55,55,58,60,55,55,56,114,114,169,143,240,205,242,254,247,238,267,225,412,422,422,418,369,272,671,647,588,565,1868,1544,2814,2551]} 1. e4 {[%emt 0:00:09]} e5 {[%emt 0:00:05]} 2. Nf3 {[%emt 0:00:12]} Nc6 {[%emt 0:00:05]} 3. Bc4 {[%emt 0:00:10]} Bc5 {[%emt 0:00:13]} 4. d3 {[%emt 0:00:10]} Nf6 {[%emt 0:00:11]} 5. Nc3 {[%emt 0:00:07]} d6 {[%emt 0:09:20]} 6. Na4 {[%emt 0:00:26]} Bb6 {[%emt 0:01:18] C50: Hungarian Defence and Giuoco Pianissimo.} 7. a3 {[%emt 0:01:03]} h6 {[%emt 0:01:47]} 8. h3 {[%emt 0:00:13]} Be6 {[%emt 0:03:30] The position is equal.} 9. Bxe6 {[%emt 0:00:24]} fxe6 {[%emt 0:00:07]} 10. b4 {[%emt 0:01:38] [#]} Ne7 $146 {[%emt 0:07:22]} ({Predecessor:} 10... O-O 11. O-O Qe8 12. c4 Nd4 13. Nxb6 Nxf3+ 14. Qxf3 axb6 15. Qe2 Qg6 16. Ra2 Nh5 {1-0 Nepomniachtchi,I (2792)-Caruana,F (2820) Paris GCT Blitz 2021 (2)}) 11. O-O {[%emt 0:02:01]} c6 {[%emt 0:05:12]} 12. Nxb6 {[%emt 0:00:46]} axb6 {[%emt 0:00:20]} 13. a4 {[%emt 0:05:09]} O-O {[%emt 0:01:43]} 14. Be3 {[%emt 0:08:29]} Ng6 {[%emt 0:02:08]} 15. c4 {[%emt 0:09:47]} d5 {[%emt 0:06:03]} 16. Qe2 {[%emt 0:04:16]} d4 {[%emt 0:18:56]} 17. Bd2 {[%emt 0:01:01]} Nd7 {[%emt 0:05:53]} 18. g3 {[%emt 0:00:42]} Rf7 {[%emt 0:04:03]} 19. Nh2 {[%emt 0:01:37]} (19. Kg2 {is interesting.} Qe7 20. Nh2 Rff8 21. h4) 19... Qe7 {[%emt 0:00:02]} 20. h4 {[%emt 0:03:21][%cal Bh3h4,Bh4h5][%mdl 32]} Nf6 {[%emt 0:05:10]} 21. Kh1 {[%emt 0:01:34]} Raf8 {[%emt 0:03:16]} 22. h5 {[%emt 0:03:06]} Nh8 {[%emt 0:00:04]} 23. f4 {[%emt 0:02:57]} Qe8 {[%emt 0:00:03]} 24. Ng4 {[%emt 0:16:15]} Nxg4 {[%emt 0:03:50]} 25. Qxg4 {[%emt 0:00:13]} Rf6 {[%emt 0:00:25]} 26. Rg1 {[%emt 0:05:45]} Nf7 {[%emt 0:00:58]} 27. a5 {[%emt 0:00:18]} b5 {[%emt 0:03:43]} (27... bxa5 $14 28. Rxa5 Kh7) 28. cxb5 $16 {[%emt 0:02:19] White has more active pieces.} cxb5 {[%emt 0:00:01]} (28... c5 $16) 29. Rac1 $36 {[%emt 0:00:09][%mdl 2048] [#] Rc7 is the strong threat. White has strong initiative.} Qd7 {[%emt 0:02:16] Inhibits Rc7.} (29... Nd8 $16 30. fxe5 (30. Rc7 R6f7 $16) 30... R6f7 31. Bxh6 Nc6) 30. Rc5 {[%emt 0:00:25]} Rc8 {[%emt 0:01:50]} 31. Rgc1 {[%emt 0:00:26][%cal Bg1c1,Bc1c5,Bc5c7][%mdl 32]} (31. fxe5 Rf2 32. Rxc8+ Qxc8 $11) 31... Rxc5 {[%emt 0:00:56]} 32. Rxc5 {[%emt 0:00:05]} Kh8 {[%emt 0:01:50]} 33. Kg2 {[%emt 0:01:03][%cal Bh1g2,Bg2h3,Bh3g4][%mdl 32]} (33. fxe5 Rf2 34. Bf4 Kh7 $14) 33... exf4 {[%emt 0:01:45]} (33... Qd6 34. Kg1 (34. Rxb5 Qa6 $11) 34... exf4) 34. Bxf4 {[%emt 0:01:41] [#] Strongly threatening Rc7.} Qe8 {[%emt 0:03:18]} 35. Rc7 {[%emt 0:01:50][%cal Of4e5] Be5! would be deadly.} Qf8 {[%emt 0:01:46]} 36. Kh3 {[%emt 0:03:18] And now e5 would win.} (36. Rxb7 e5 $14) 36... Ng5+ $2 {[%emt 0:05:38]} (36... Kg8 37. Kg2 (37. Rxb7 e5 $14) 37... Kh8) 37. Bxg5 {[%emt 0:00:22] White is clearly winning.} hxg5 {[%emt 0:00:02]} 38. Qxg5 {[%emt 0:00:22]} (38. Rxb7 Qc8 39. Rxb5 Qc2 $11) 38... Rh6 {[%emt 0:01:37]} 39. Kg4 {[%emt 0:01:10] Hoping for Qe5.} (39. Qxb5 Qf1+ 40. Kh4 Qh1+ 41. Kg4 Qd1+ 42. Kh4 Qh1+ 43. Kg4 Qd1+ 44. Kh4 Qh1+ $11) 39... Rf6 {[%emt 0:00:58]} 40. Qc5 {[%emt 0:00:16] Weighted Error Value: White=0.10 (very precise) /Black=0.42} ({And not} 40. Rxb7 Rf1 41. Kh4 (41. Rxb5 $2 {leads to mate.} Qf3+ 42. Kh4 Rh1#) 41... Rh1+ 42. Kg4 Rf1 $11) 1-0

[Event "3rd Sharjah Challengers 2023"]
[Site "Sharjah"]
[Date "2023.05.18"]
[Round "2.4"]
[White "Tissir, Mohamed"]
[Black "Vandenbussche, Thibaut"]
[Result "0-1"]
[ECO "D30"]
[WhiteElo "2354"]
[BlackElo "2437"]
[Annotator "TA"]
[PlyCount "96"]
[EventDate "2023.05.16"]
[EventType "swiss"]
[EventCountry "UAE"]
[SourceTitle "playchess.com"]
[Source "ChessBase"]
[SourceQuality "1"]
[TimeControl "5400+30"]

{[%evp 9,95,0,0,4,1,0,0,-1,12,16,6,10,11,0,11,0,0,0,22,34,54,50,66,62,63,48,59,68,68,54,91,69,56,83,68,26,130,52,54,67,83,37,66,6,54,47,56,44,40,45,59,31,59,0,63,25,49,41,42,41,66,56,58,10,16,8,8,0,0,0,0,-8,-8,-8,0,-289,-287,-687,-654,-29986,-29986,-29994,-29995,-29995,-29996,-29996,-29997,-29997]} 1. d4 {[%emt 0:00:18]} Nf6 {[%emt 0:00:16]} 2. Nf3 {[%emt 0:00:58]} e6 {[%emt 0:01:35]} 3. c4 {[%emt 0:01:51]} d5 {[%emt 0:00:12]} 4. e3 {[%emt 0:02:12]} Be7 {[%emt 0:01:29]} 5. a3 {[%emt 0:00:48]} b6 {[%emt 0:06:04]} 6. cxd5 {[%emt 0:00:12] D30: Queen's Gambit Declined: Systems without Nc3.} exd5 {[%emt 0:00:38]} 7. b4 {[%emt 0:00:07]} O-O {[%emt 0:02:31]} 8. Nc3 {[%emt 0:03:10] The position is equal.} c5 {[%emt 0:07:22]} 9. bxc5 {[%emt 0:01:20]} bxc5 {[%emt 0:00:06]} 10. dxc5 {[%emt 0:00:05]} Bxc5 {[%emt 0:05:29]} 11. Be2 {[%emt 0:10:38]} Nc6 {[%emt 0:09:08]} 12. O-O {[%emt 0:02:47]} Be6 {[%emt 0:00:53] [#]} 13. Bb2 $146 {[%emt 0:05:22]} ({Predecessor:} 13. Qc2 Na5 14. Rb1 Nc4 15. Bd3 Nxa3 16. Bxa3 Bxa3 17. Ng5 h6 18. Qa4 Bc5 19. Nxe6 fxe6 {½-½ Martys,M (2222)-Mueller Alves,M (2136) LSS SM-2008-0-00013}) 13... Be7 {[%emt 0:04:13]} 14. Rc1 {[%emt 0:12:38]} Rb8 {[%emt 0:02:27]} 15. Nb5 {[%emt 0:04:19]} Qd7 {[%emt 0:01:56]} 16. Ne5 {[%emt 0:05:24]} Nxe5 {[%emt 0:00:34]} 17. Bxe5 {[%emt 0:00:03]} Rb7 {[%emt 0:03:33]} ({Less strong is} 17... Rxb5 18. Rc7 $16) 18. a4 {[%emt 0:02:28]} Ne4 {[%emt 0:05:19]} 19. Nd4 {[%emt 0:02:49] Black must now prevent Bb5.} Ba3 {[%emt 0:09:02]} 20. Rc6 {[%emt 0:04:05]} Bd6 {[%emt 0:06:09]} 21. Bxd6 {[%emt 0:06:03]} Nxd6 {[%emt 0:00:02]} 22. Qc2 {[%emt 0:08:17] With the idea Ba6.} (22. Qa1 $5) 22... Nf5 {[%emt 0:04:32] [#]} (22... Nc4 $11) 23. Nxf5 {[%emt 0:08:04]} ({White should play} 23. Nxe6 $1 $16 fxe6 24. Ba6) 23... Bxf5 $14 {[%emt 0:00:02]} 24. Qc5 {[%emt 0:00:02]} Rd8 {[%emt 0:05:19]} 25. Rc1 {[%emt 0:02:02]} (25. Rd1 $16) 25... h6 {[%emt 0:04:29]} 26. Bb5 {[%emt 0:00:40]} (26. h3 $14) 26... Qe7 {[%emt 0:01:39]} (26... d4 $1 $11 {might be stronger.}) 27. Qd4 {[%emt 0:05:41]} (27. Qxe7 {simplifies} Rxe7 28. Kf1 Kf8 29. Rc7) 27... Be4 {[%emt 0:01:55]} 28. f3 {[%emt 0:02:00]} Bf5 {[%emt 0:00:12]} 29. R6c5 {[%emt 0:01:44]} Be6 {[%emt 0:00:53]} 30. Qe5 {[%emt 0:00:33]} Qd6 {[%emt 0:01:31]} 31. Qd4 {[%emt 0:01:12]} (31. Qxd6 {simplifies} Rxd6 32. Rc7 Rdb6 33. Rxb7 Rxb7 34. Kf2) 31... Qe7 {[%emt 0:01:12]} 32. Ba6 {[%emt 0:02:04]} Rb6 {[%emt 0:02:02]} 33. Rc7 {[%emt 0:00:57]} Qd6 {[%emt 0:01:16]} 34. Bf1 {[%emt 0:01:22]} a6 {[%emt 0:02:04]} 35. a5 {[%emt 0:00:44]} Rb4 {[%emt 0:00:20]} 36. Qd2 {[%emt 0:01:34]} (36. R7c6 $14 Qb8 37. Qc3) 36... d4 $11 {[%emt 0:01:42]} 37. R7c6 {[%emt 0:01:17]} Qe7 {[%emt 0:00:05]} 38. exd4 {[%emt 0:00:05]} Rbxd4 {[%emt 0:00:28]} 39. Qe3 {[%emt 0:00:18]} Qb4 {[%emt 0:02:55]} 40. Rxa6 {[%emt 0:00:42]} Rd1 {[%emt 0:00:55]} 41. Rxd1 {[%emt 0:00:59]} Rxd1 {[%emt 0:00:02]} 42. Ra8+ $2 {[%emt 0:00:48][%mdl 8192] [#]} (42. Rxe6 $1 $11 {and White stays safe.} fxe6 43. Qxe6+ Kf8 44. Qf5+ Kg8 45. Qe6+ Kf8 46. Qf5+ Ke7 47. Qe5+ Kd8 48. Kf2) 42... Kh7 $19 {[%emt 0:00:02] Hoping for ...Bc4.} 43. g4 $2 {[%emt 0:02:23]} (43. h4 Bf5 44. Re8) 43... Bc4 {[%emt 0:02:59]} 44. Qe4+ {[%emt 0:00:31]} g6 {[%emt 0:00:02] Black mates.} 45. Qe5 {[%emt 0:00:50]} Rxf1+ {[%emt 0:00:08]} 46. Kg2 {[%emt 0:00:03]} Qd2+ {[%emt 0:00:08]} 47. Kg3 {[%emt 0:00:46]} Rg1+ {[%emt 0:00:46]} 48. Kh4 {[%emt 0:00:20]} Qf2+ {[%emt 0:00:09] Excellently played by Vandenbussche!   Weighted Error Value: White=0.42/Black=0.12 (very precise)} 0-1

[Event "3rd Sharjah Challengers 2023"]
[Site "Sharjah"]
[Date "2023.05.18"]
[Round "2.5"]
[White "Saydaliev, Saidakbar"]
[Black "Mammadova, Gulnar"]
[Result "0-1"]
[ECO "B07"]
[WhiteElo "2434"]
[BlackElo "2349"]
[Annotator "TA"]
[PlyCount "46"]
[EventDate "2023.05.16"]
[EventType "swiss"]
[EventCountry "UAE"]
[SourceTitle "playchess.com"]
[Source "ChessBase"]
[SourceQuality "1"]
[TimeControl "5400+30"]

{[%evp 9,46,18,14,29,22,26,25,0,6,6,6,6,6,3,0,8,0,3,0,5,7,-29,-35,-25,0,-73,0,0,0,0,0,0,-3,-40,-14,-1237,-1318,-1281,-1258]} 1. e4 {[%emt 1:31:00]} d6 {[%emt 1:31:00]} 2. d4 {[%emt 0:00:30]} Nf6 {[%emt 0:00:30]} 3. Nc3 {[%emt 0:00:30]} e5 {[%emt 0:00:30]} 4. Be3 {[%emt 0:00:30]} Be7 {[%emt 0:00:30]} 5. h3 {[%emt 0:00:30]} O-O {[%emt 0:00:30]} 6. g4 {[%emt 0:00:30] [#] B07: Pirc Defence: Miscellaneous Systems.} h6 $146 {[%emt 0:00:30]} ({Predecessor:} 6... c6 7. Nge2 b5 8. a3 a5 9. Bg2 Ba6 10. O-O b4 11. axb4 axb4 12. Na4 h6 {0-1 Plotnikov,P (2297)-Valdes Romero,L (2402) Titled Tuesday intern op 15th June blitz 2021 (4)}) 7. Nge2 {[%emt 0:00:30]} exd4 {[%emt 0:00:30]} 8. Nxd4 {[%emt 0:00:30] White has an edge.} d5 $1 {[%emt 0:00:30]} 9. e5 {[%emt 0:00:30]} c5 {[%emt 0:00:30]} 10. exf6 {[%emt 0:00:30]} Bxf6 {[%emt 0:00:30] [#]} 11. Bg2 $1 {[%emt 0:00:30][%cal Oe1g1]} cxd4 {[%emt 0:00:30]} 12. Bxd4 {[%emt 0:00:30]} Re8+ {[%emt 0:00:30]} 13. Kf1 {[%emt 0:00:30]} Bxd4 {[%emt 0:00:30]} 14. Qxd4 {[%emt 0:00:30]} Be6 {[%emt 0:00:30]} 15. Rd1 {[%emt 0:00:30][%cal Rg2d5]} Nc6 {[%emt 0:00:30]} 16. Qf4 {[%cal Rg2d5]} Qb6 {[%emt 0:00:30]} (16... Ne7 {simplifies} 17. Nb5 Rf8 18. Qd6 Qxd6 19. Nxd6 b5) 17. b3 {[%emt 0:01:00] [#]} (17. Nxd5 $11 {remains equal.} Qxb2 18. Be4) 17... Nb4 {[%emt 0:00:30]} (17... d4 $1 $17 {[%cal Rd4c3]} 18. Na4 Qa5) 18. Nxd5 $11 {[%emt 0:00:30]} Rad8 {[%emt 0:00:30]} 19. c4 {[%emt 0:00:30]} Nxa2 {[%emt 0:00:30]} 20. Rd3 {[%emt 0:00:30]} (20. Nxb6 $2 {is a self mate.} Rxd1+ 21. Ke2 Bxg4#) 20... Qa5 $40 {[%emt 0:00:30][%mdl 128] Black has some attack.} 21. Qd2 {[%emt 0:00:30] Inhibits Nb4.} Nb4 {[%emt 0:00:30]} 22. Nxb4 $2 {[%emt 0:00:30][%mdl 8192]} (22. Bf3 $11) 22... Rxd3 $19 {[%emt 0:00:30]} 23. Qxd3 {[%emt 0:00:30]} Bxc4 {[%emt 0:00:30] Weighted Error Value: White=0.53/Black=0.08 (flawless)} ({And not} 23... Qxb4 24. Bf3 $11) 0-1

[Event "3rd Sharjah Challengers 2023"]
[Site "Sharjah"]
[Date "2023.05.18"]
[Round "2.6"]
[White "Zawadzka, Jolanta"]
[Black "Haznedaroglu, Kivanc"]
[Result "1/2-1/2"]
[ECO "B03"]
[WhiteElo "2348"]
[BlackElo "2418"]
[Annotator "TA"]
[PlyCount "144"]
[EventDate "2023.05.16"]
[EventType "swiss"]
[EventCountry "UAE"]
[SourceTitle "playchess.com"]
[Source "ChessBase"]
[SourceQuality "1"]
[TimeControl "5400+30"]

{[%evp 15,144,27,20,29,44,38,47,46,77,61,63,67,74,80,94,96,87,79,113,97,122,134,149,138,155,142,148,65,99,93,93,77,83,64,107,53,45,54,52,0,1,24,51,45,60,69,29,0,118,121,117,136,140,129,134,75,85,53,36,12,20,16,14,5,81,41,93,87,100,87,75,78,119,110,311,295,305,297,270,275,320,337,1005,183,12021,12237,6035,6035,6002,5824,2136,177,189,189,189,184,200,8,8,0,0,0,0,0,0,0,0,0,8,0,8,8,8,8,8,8,8,8,8,8,8,8,8,8,8,8,8,8,8,8,8]} 1. e4 {[%emt 0:00:03][%cal Be2e4,Be4e5][%mdl 32]} Nf6 {[%emt 0:00:08]} 2. e5 {[%emt 0:00:05]} Nd5 {[%emt 0:00:04]} 3. d4 {[%emt 0:00:05]} d6 {[%emt 0:00:06]} 4. c4 {[%emt 0:00:05]} Nb6 {[%emt 0:00:04]} 5. exd6 {[%emt 0:00:05]} exd6 {[%emt 0:00:15]} 6. Nc3 {[%emt 0:00:49]} Be7 {[%emt 0:00:25]} 7. Bd3 {[%emt 0:00:40]} O-O {[%emt 0:00:12] The modern move.} 8. Nge2 {[%emt 0:01:28]} Nc6 {[%emt 0:05:14]} 9. b3 {[%emt 0:01:57] B03: Alekhine's Defence: Four Pawns Attack.} Bg4 {[%emt 0:02:35]} 10. Be3 {[%emt 0:06:14]} Bf6 {[%emt 0:03:18]} 11. f3 {[%emt 0:10:23] White is slightly better.} Bh5 {[%emt 0:01:54]} 12. O-O {[%emt 0:00:36]} Re8 {[%emt 0:04:24]} 13. Qd2 {[%emt 0:03:17]} Bg6 {[%emt 0:00:31]} 14. Be4 {[%emt 0:04:05] [#]} Qc8 $146 {[%emt 0:06:39]} ({Predecessor:} 14... Rb8 15. Rae1 Ne7 16. d5 Ra8 17. Bxg6 Nxg6 18. Ne4 Be7 19. N2g3 Bf8 20. Bd4 Nd7 21. f4 c6 22. Nf5 cxd5 23. cxd5 Qc7 24. h4 Nc5 25. Nh6+ {1-0 Akopian,V (2650)-Aronyak,G (2332) Abu Dhabi op 26th 2019 (8)}) 15. Rad1 {[%emt 0:04:06]} Nd7 {[%emt 0:09:12]} 16. g4 {[%emt 0:07:43]} Be7 {[%emt 0:06:08]} 17. Ng3 {[%emt 0:08:28]} Nf6 {[%emt 0:03:24]} 18. Bf5 {[%emt 0:00:20]} Bxf5 {[%emt 0:09:39]} 19. Nxf5 {[%emt 0:00:07][%cal Oe3h6]} Bf8 {[%emt 0:00:04]} 20. Bg5 {[%emt 0:02:46]} Nd7 {[%emt 0:01:14]} 21. d5 {[%emt 0:09:52]} ({Better is} 21. Rde1 $16) 21... Nce5 {[%emt 0:05:38]} 22. h3 {[%emt 0:00:57]} Nc5 {[%emt 0:02:28]} 23. Nd4 {[%emt 0:07:03]} Qd7 {[%emt 0:04:05]} 24. Bh4 {[%emt 0:04:02]} Be7 {[%emt 0:03:40]} 25. Bg3 {[%emt 0:03:50]} (25. Bxe7 $16 {[%cal Oe7f6] And now Bf6! would win.} Qxe7 26. f4) 25... Bf6 $14 {[%emt 0:00:48]} 26. Qc2 {[%emt 0:00:20] Inhibits Ned3.} a5 {[%emt 0:02:47][%cal Ba7a5,Ba5a4][%mdl 32]} 27. a3 {[%emt 0:00:41]} (27. Ncb5 $14) 27... a4 {[%emt 0:17:25] ...axb3 is the strong threat.} (27... h5 $5 {[%cal Rh5g4]}) 28. b4 {[%emt 0:02:34]} Nxc4 {[%emt 0:00:03]} (28... Nb3 {simplifies} 29. Nxb3 axb3 30. Qxb3 Ng6) 29. bxc5 {[%emt 0:01:09] Threatens to win with Nf5.} Ne3 {[%emt 0:01:02] Repels Nf5} 30. Qd3 {[%emt 0:01:08][%cal Oc5d6] Hoping for cxd6!} dxc5 {[%emt 0:02:18]} 31. Nf5 {[%emt 0:01:38]} c4 {[%emt 0:02:13]} (31... Nxd1 $11 {keeps the balance.} 32. Ne4 Bd4+ 33. Nxd4 Qxd5 {[%mdl 64] Pin} 34. Rxd1 cxd4) 32. Qd2 $16 {[%emt 0:00:17]} Nxf5 {[%emt 0:03:47]} 33. gxf5 {[%emt 0:00:19]} Be5 {[%emt 0:00:09]} 34. Bxe5 {[%emt 0:04:35]} Rxe5 {[%emt 0:00:02]} 35. d6 {[%emt 0:00:08]} (35. Rb1 $142 $1) 35... cxd6 {[%emt 0:01:22]} 36. Qxd6 {[%emt 0:00:15]} (36. f4 {simplifies} Rxf5 37. Qxd6 Qxd6 38. Rxd6 Rb8 39. Nd5) 36... Qxf5 {[%emt 0:01:28]} 37. Rd4 {[%emt 0:02:57]} Rae8 {[%emt 0:00:54]} 38. Rg4 {[%emt 0:05:38] Repels Qg5} h5 {[%emt 0:00:01]} 39. Rg2 {[%emt 0:00:08] Black should prevent Ne4.} R8e6 {[%emt 0:03:12]} (39... Qxh3 40. Ne4 R5e6 41. Qd5 $16 (41. Qd4 g6 $16)) (39... Re1 $11 40. Rxe1 (40. Nxa4 Rxf1+ 41. Kh2 Rxf3 42. Qd2 Rfe3 43. Kg1 Qxh3) 40... Rxe1+ 41. Kf2 (41. Kh2 Qxf3 42. Qb8+ Kh7 $15) 41... Rc1) 40. Qd4 {[%emt 0:00:25] Black must now prevent f4.} Rg6 {[%emt 0:00:57]} ({Black should play} 40... g6 $1 $14) 41. Ne4 {[%emt 0:00:20]} (41. Nxa4 Re2 42. Rff2 (42. Qd8+ Kh7) 42... Qb1+ 43. Kh2 Re1 44. Qd8+ (44. Qxc4 $2 Rh1#) 44... Kh7 45. Rxg6 fxg6 $19) 41... Rxg2+ {[%emt 0:00:29]} 42. Kxg2 {[%emt 0:00:05]} b5 {[%emt 0:00:28]} 43. Rd1 $1 {[%emt 0:02:01]} f6 {[%emt 0:00:37]} 44. Qa7 $1 {[%emt 0:01:17]} Qf4 $2 {[%emt 0:00:35] [#]} (44... Re8 $16) 45. Rd7 $1 $18 {[%emt 0:01:17]} Qh6 {[%emt 0:00:01]} 46. Qb8+ {[%emt 0:03:09]} Kh7 {[%emt 0:00:06]} 47. Qf8 {[%emt 0:00:15]} Re6 {[%emt 0:01:20]} 48. Rd8 {[%emt 0:00:22] Prevents c3} Qe3 $2 {[%emt 0:00:33]} (48... Kg6 49. Rd5 h4) 49. Qg8+ $2 {[%emt 0:01:04]} (49. Ng3 {White threatens Qh8+ and mate.} Re5 50. Qg8+ (50. f4 Qxf4 51. Qg8+ Kg6 $11) 50... Kg6 51. Rd7) 49... Kh6 $2 {[%emt 0:00:01]} (49... Kg6) 50. Qxe6 {[%emt 0:01:33]} Qe2+ {[%emt 0:00:01]} 51. Kg3 {[%emt 0:00:15]} Qe1+ {[%emt 0:00:54]} 52. Kf4 {[%emt 0:00:58]} Qh4+ {[%emt 0:00:22]} 53. Ke3 $2 {[%emt 0:00:03]} (53. Qg4 {[%cal Rd8h8]} g5+ 54. Kf5 hxg4 55. Rh8+ Kg7 56. Rxh4 gxf3 57. Rg4) 53... Qe1+ {[%emt 0:00:03]} 54. Kd4 {[%emt 0:00:32] White wants to mate with Rh8+.} (54. Kf4 Qh4+ $18) 54... Qd1+ {[%emt 0:00:01]} 55. Kc5 {[%emt 0:00:05]} Qxd8 {[%emt 0:00:03] [#]} 56. Kxb5 $2 {[%emt 0:01:03] Active counter play!} (56. Nd6 $1 $18 {[%cal Rd6f7] aiming for Nf7+.} Qf8 57. Kb4 (57. Kxb5 Qb8+ 58. Kc5 c3 $16)) 56... Qd3 $11 {[%emt 0:00:09][%csl LRa3,LRf3] The position is equal.} 57. Qxc4 {[%emt 0:00:59]} (57. Nc5 {is more complex.} Qxa3 58. Qe2 c3 59. Qe3+) 57... Qxa3 {[%emt 0:00:47]} 58. Qxa4 {[%emt 0:01:16]} Qxf3 {[%emt 0:03:11]} 59. Qa8 {[%emt 0:00:56]} Qf5+ {[%emt 0:00:00]} 60. Kc4 {[%emt 0:00:34]} Qe6+ {[%emt 0:00:00]} 61. Kd4 {[%emt 0:00:23]} f5 {[%emt 0:00:53]} 62. Qh8+ {[%emt 0:00:24]} Kg6 {[%emt 0:00:01] [#]} 63. Qh7+ $1 {[%emt 0:00:17][%mdl 64] Decoy} Kxh7 {[%emt 0:00:41]} 64. Ng5+ {[%emt 0:00:01]} Kg6 {[%emt 0:00:23]} 65. Nxe6 {[%emt 0:00:03][%mdl 4096] Endgame Threatening mate with Ke5. KN-K3P} Kf6 $132 {[%emt 0:00:03][%mdl 2048] Black is not keeping still} 66. Nf4 {[%emt 0:00:20]} h4 {[%emt 0:00:41]} 67. Nd5+ {[%emt 0:00:23]} Ke6 {[%emt 0:00:09]} 68. Nc7+ {[%emt 0:01:42]} Kf6 {[%emt 0:00:18]} 69. Ke3 {[%emt 0:00:42]} g5 {[%emt 0:00:16]} 70. Kf3 {[%emt 0:00:10]} g4+ {[%emt 0:00:10]} 71. hxg4 {[%emt 0:00:02]} fxg4+ {[%emt 0:00:03]} 72. Kxg4 {[%emt 0:00:03]} Ke5 {[%emt 0:03:22] Blacks defense is rewarded with a draw.   Weighted Error Value: White=0.29 (precise) /Black=0.23 (precise)} 1/2-1/2